bitfinex-derivatives/quotes_BNBF0:USTF0_20250111
["timestamp","ask_amount","ask_price","bid_price","bid_amount"]
[1736637857644,0.26344803,698.12,696.14,4.01192716]
[1736637857849,0.26344803,698.11,696.15,3.04990329]
[1736637858145,0.26345115,698.1,696.15,5.77515158]
[1736637858349,0.26345115,698.23,696.16,2.72524829]
[1736637858545,1.06716855,698.21,696.17,1.28667887]
[1736637858751,0.26345115,698.2,696.17,1.28667887]
[1736637859045,0.26345115,698.2,696.17,4.33658216]
[1736637859251,1.06716855,698.18,696.28,1.28667887]
[1736637859444,0.26345115,698.17,696.28,1.28667887]
[1736637859643,1.06716855,698.18,696.28,1.28667887]
[1736637859848,0.26345472,698.17,696.28,1.28667887]
[1736637860248,0.26345472,698.17,696.3,1.28667887]
[1736637860849,1.06716855,698.18,696.3,1.28667887]
[1736637861051,1.06716855,698.18,696.21,2.72524829]
[1736637861052,1.33062032,698.17,696.32,1.28667887]
[1736637861246,0.26345177,698.16,696.32,1.28667887]
[1736637861646,0.2634513,698.15,696.32,1.28667887]
[1736637861850,0.2634513,698.14,696.32,1.28667887]
[1736637862146,0.263448,698.13,696.32,1.28667887]
[1736637862346,1.06716855,698.18,696.32,1.28667887]
[1736637862347,0.263448,698.12,696.32,1.28667887]
[1736637862555,0.263448,698.11,696.32,1.28667887]
[1736637862746,0.263448,698.1,696.33,1.28667887]
[1736637862952,0.263448,698.09,696.33,1.28667887]
[1736637863147,0.263448,698.08,696.33,1.28667887]
[1736637863351,0.263448,698.07,696.33,1.28667887]
[1736637863549,0.263448,698.06,696.33,1.28667887]
[1736637863751,0.26345162,698.05,696.36,1.28667887]
[1736637863950,0.26345162,698.04,696.36,1.28667887]
[1736637864250,0.26345162,698.03,696.36,1.28667887]
[1736637864550,0.26345162,698.02,696.33,1.28667887]
[1736637864750,0.26345162,698.01,696.33,1.28667887]
[1736637864952,0.26345162,698.0,696.33,1.28667887]
[1736637865152,0.26345162,697.99,696.33,1.28667887]
[1736637865346,0.26345162,697.98,696.33,1.28667887]
[1736637865547,0.26345162,697.97,696.33,1.28667887]
[1736637865747,0.26345162,697.96,696.33,1.28667887]
[1736637865951,1.06716855,698.14,696.33,1.28667887]
[1736637866152,0.26346464,698.13,696.33,1.28667887]
[1736637866750,1.06716855,698.14,696.33,1.28667887]
[1736637867248,1.06716855,698.28,696.32,2.72524829]
[1736637867452,0.26344885,698.27,696.32,2.72524829]
[1736637867854,0.26344885,698.27,696.15,2.72524829]
[1736637868355,1.06716855,698.26,696.15,2.72524829]
[1736637868654,0.26344885,698.25,696.15,2.72524829]
[1736637869056,0.26344844,698.24,696.15,2.72524829]
[1736637869255,0.26344844,698.23,696.14,4.01192716]
[1736637869455,0.26344844,698.22,696.14,4.01192716]
[1736637869656,0.26344844,698.21,696.14,4.01192716]
[1736637869959,0.26344804,698.2,696.14,4.01192716]
[1736637870154,0.26344804,698.19,696.15,1.28667887]
[1736637870349,0.26344804,698.18,696.15,1.28667887]
[1736637870550,0.26344804,698.17,696.15,1.28667887]
[1736637870850,0.26344804,698.16,696.15,1.28667887]
[1736637871050,0.26344804,698.15,696.15,4.33658216]
[1736637871256,1.06716855,698.29,696.17,1.28667887]
[1736637871449,0.54986108,698.28,696.27,0.28724489]
[1736637871651,0.54986518,698.27,696.27,0.28724489]
[1736637871856,0.26343835,698.26,696.27,0.28724489]
[1736637874452,1.06716855,698.26,696.27,0.28724489]
[1736637874651,0.26344025,698.25,696.27,0.28724489]
[1736637877157,0.28642215,698.27,696.27,0.28724489]
[1736637877158,1.06716855,698.14,696.44,1.28667887]
[1736637877758,1.06716855,698.14,696.46,0.28716652]
[1736637878259,1.06716855,698.24,696.46,0.28716652]
[1736637878559,0.26342981,698.23,696.46,0.28716652]
[1736637879658,0.26342981,698.22,696.46,0.28716652]
[1736637879858,0.26342981,698.21,696.46,0.28716652]
[1736637880060,0.26343475,698.2,696.46,0.28716652]
[1736637880254,0.26343475,698.19,696.46,0.28716652]
[1736637880457,0.26343475,698.18,696.46,0.28716652]
[1736637880658,1.06716855,698.22,696.46,0.28716652]
[1736637880857,0.2634341,698.21,696.46,0.28716652]
[1736637881359,1.06716855,698.19,696.46,0.28716652]
[1736637881559,0.2634341,698.18,696.46,0.28716652]
[1736637882260,1.06716855,698.15,696.46,0.28716652]
[1736637883253,1.06716855,698.17,696.46,0.28716652]
[1736637884564,1.06716855,698.1,696.46,0.28716652]
[1736637885360,1.06716855,698.09,696.46,0.28716652]
[1736637888660,1.06716855,698.05,696.51,1.28667887]
[1736637888860,1.06716855,698.05,696.53,0.28713766]
[1736637889763,1.06716855,698.06,696.53,0.28713766]
[1736637892165,1.06716855,698.05,696.54,1.28667887]
[1736637892359,1.06716855,698.05,696.56,0.2871253]
[1736637893067,1.06716855,697.97,696.7,1.28667887]
[1736637893267,1.06716855,697.97,696.71,0.28706348]
[1736637893968,1.06716855,697.98,696.71,1.57374235]
[1736637894967,1.06716855,698.0,696.71,0.28706348]
[1736637896862,1.06716855,697.99,696.71,0.28706348]
[1736637898866,1.06716855,697.98,696.71,0.28706348]
[1736637899865,1.06716855,697.97,696.71,0.28706348]
[1736637901172,1.06716855,698.04,696.71,0.28706348]
[1736637902171,0.28642215,698.27,696.71,0.28706348]
[1736637902172,1.06716855,698.01,696.71,0.28706348]
[1736637902975,1.06716855,698.02,696.71,0.28706348]
[1736637906077,1.06716855,698.01,696.71,0.28706348]
[1736637907378,0.28642215,698.27,696.71,0.28706348]
[1736637907379,1.06716855,698.03,696.71,0.28706348]
[1736637910480,1.06716855,697.99,696.71,0.28706348]
[1736637913779,0.28642215,698.27,696.71,0.28706348]
[1736637913780,1.06716855,698.01,696.71,0.28706348]
[1736637914680,0.28642215,698.27,696.71,0.28706348]
[1736637914681,1.06716855,697.99,696.71,0.28706348]
[1736637916681,1.06716855,697.98,696.71,0.28706348]
[1736637917481,1.06716855,697.94,696.71,0.28706348]
[1736637920285,1.06716855,697.95,696.71,0.28706348]
[1736637921187,1.06716855,697.92,696.71,0.28706348]
[1736637922386,1.06716855,697.93,696.71,0.28706348]
[1736637923090,1.06716855,697.9,696.71,1.57374235]
[1736637925795,1.06716855,697.89,696.71,0.28706348]
[1736637926590,1.06716855,698.03,696.71,0.28706348]
[1736637926892,0.26348932,698.02,696.71,0.28706348]
[1736637927794,1.06716855,697.81,696.71,0.28706348]
[1736637928795,1.06716855,697.85,696.71,0.28706348]
[1736637929897,1.06716855,697.86,696.71,0.28706348]
[1736637931600,1.06716855,697.88,696.71,0.28706348]
[1736637933400,0.88327867,698.2,696.71,0.28706348]
[1736637933401,1.06716855,697.89,696.71,0.28706348]
[1736637933902,0.26352085,697.88,696.71,0.28706348]
[1736637934096,1.06716855,697.89,696.71,0.28706348]
[1736637934295,1.06716855,697.88,696.71,0.28706348]
[1736637935104,1.06716855,697.89,696.71,0.28706348]
[1736637936202,1.06716855,697.91,696.71,0.28706348]
[1736637936408,0.26352112,697.9,696.71,0.28706348]
[1736637937305,1.33068967,697.9,696.71,0.28706348]
[1736637937505,0.26352112,697.89,696.71,0.28706348]
[1736637938508,0.26352112,697.88,696.71,0.28706348]
[1736637938710,1.06716855,697.91,696.71,0.28706348]
[1736637939207,0.26351622,697.9,696.71,0.28706348]
[1736637939808,0.26351622,697.89,696.71,0.28706348]
[1736637940002,0.26351622,697.88,696.71,0.28706348]
[1736637940209,1.06716855,697.93,696.71,0.28706348]
[1736637940409,0.26351631,697.92,696.71,0.28706348]
[1736637941005,0.26351631,697.91,696.71,0.28706348]
[1736637941203,0.26351631,697.9,696.71,0.28706348]
[1736637941406,0.26351631,697.89,696.71,0.28706348]
[1736637941603,0.26351631,697.88,696.71,0.28706348]
[1736637941803,0.26351795,697.87,696.71,0.28706348]
[1736637942004,0.26351795,697.86,696.71,0.28706348]
[1736637942208,0.26351795,697.85,696.71,0.28706348]
[1736637942403,0.26351795,697.84,696.71,0.28706348]
[1736637942711,0.26351661,697.83,696.71,0.28706348]
[1736637942907,0.26351661,697.82,696.71,0.28706348]
[1736637943103,1.06716855,697.91,696.71,0.28706348]
[1736637943305,0.26351753,697.9,696.71,0.28706348]
[1736637944110,1.06716855,697.89,696.71,0.28706348]
[1736637944305,0.26351753,697.88,696.71,0.28706348]
[1736637944708,0.26351484,697.87,696.71,0.28706348]
[1736637944910,0.26351484,697.86,696.71,0.28706348]
[1736637945111,0.26351484,697.85,696.71,0.28706348]
[1736637945306,0.26351484,697.84,696.71,0.28706348]
[1736637945511,0.26351484,697.83,696.71,0.28706348]
[1736637945711,0.26351484,697.82,696.71,0.28706348]
[1736637945905,0.26351484,697.81,696.71,0.28706348]
[1736637946109,1.06716855,697.9,696.71,0.28706348]
[1736637946308,0.26351794,697.89,696.71,0.28706348]
[1736637947312,1.06716855,697.9,696.71,0.28706348]
[1736637947507,0.26351786,697.89,696.71,0.28706348]
[1736637948711,1.33068641,697.89,696.71,0.28706348]
[1736637948913,0.26351786,697.88,696.71,0.28706348]
[1736637949812,1.33068641,697.88,696.71,0.28706348]
[1736637950014,0.26352314,697.87,696.71,0.28706348]
[1736637950712,0.26352053,697.86,696.71,0.28706348]
[1736637950906,0.26352053,697.85,696.71,0.28706348]
[1736637951110,0.26352053,697.84,696.71,0.28706348]
[1736637951312,0.26352053,697.83,696.71,0.28706348]
[1736637951512,0.26352053,697.82,696.71,0.28706348]
[1736637951707,0.26352053,697.81,696.71,0.28706348]
[1736637951909,0.26352053,697.8,696.71,0.28706348]
[1736637952110,1.06716855,697.87,696.71,0.28706348]
[1736637952311,0.26352764,697.86,696.71,0.28706348]
[1736637953111,1.06716855,697.85,696.71,0.28706348]
[1736637953312,0.26352764,697.84,696.71,0.28706348]
[1736637954214,0.26352764,697.83,696.71,0.28706348]
[1736637954412,0.26352764,697.82,696.71,0.28706348]
[1736637954609,0.26352764,697.81,696.71,0.28706348]
[1736637954814,0.28650011,698.08,696.71,0.28706348]
[1736637954815,0.26352764,697.8,696.71,0.28706348]
[1736637955015,1.06716855,697.84,696.71,0.28706348]
[1736637955211,0.26352342,697.83,696.71,0.28706348]
[1736637955616,0.26352341,697.82,696.71,0.28706348]
[1736637955916,0.26352341,697.81,696.71,0.28706348]
[1736637956118,0.26352341,697.8,696.71,0.28706348]
[1736637956417,1.06716855,697.83,696.71,0.28706348]
[1736637956718,0.26352009,697.82,696.71,0.28706348]
[1736637956917,0.26352009,697.81,696.71,0.28706348]
[1736637957117,1.06716855,697.84,696.71,0.28706348]
[1736637957316,0.26352054,697.83,696.71,0.28706348]
[1736637957617,1.06716855,697.82,696.71,0.28706348]
[1736637957917,0.26352054,697.81,696.71,0.28706348]
[1736637958418,0.26352177,697.8,696.71,0.28706348]
[1736637958619,1.06716855,697.81,696.71,0.28706348]
[1736637958815,0.26352178,697.8,696.71,0.28706348]
[1736637959015,1.06716855,697.81,696.71,0.28706348]
[1736637959516,1.06716855,697.79,696.71,0.28706348]
[1736637960618,1.06716855,697.76,696.71,0.28706348]
[1736637961412,1.06716855,697.75,696.71,0.28706348]
[1736637962218,1.06716855,697.72,696.71,0.28706348]
[1736637964320,1.06716855,697.71,696.71,0.28706348]
[1736637965023,1.06716855,697.7,696.71,0.28706348]
[1736637966817,1.06716855,697.69,696.71,0.28706348]
[1736637967921,1.06716855,697.68,696.71,0.28706348]
[1736637968719,1.06716855,697.67,696.71,0.28706348]
[1736637969520,1.06716855,697.66,696.71,0.28706348]
[1736637973617,1.06716855,697.68,696.71,0.28706348]
[1736637978021,1.06716855,697.67,696.71,0.28706348]
[1736637979427,1.06716855,697.68,696.71,0.28706348]
[1736637982133,1.06716855,697.67,696.71,0.28706348]
[1736637982927,1.06716855,697.68,696.71,0.28706348]
[1736637983837,1.06716855,697.67,696.71,0.28706348]
[1736637986436,1.06716855,697.69,696.71,0.28706348]
[1736637987534,1.06716855,697.67,696.71,0.28706348]
[1736637990638,1.06716855,697.85,696.71,0.28706348]
[1736637990639,1.06716855,697.66,696.71,0.28706348]
[1736638005159,1.06716855,697.67,696.71,0.28706348]
[1736638011869,1.06716855,698.07,696.71,0.28706348]
[1736638013070,0.28650011,698.08,696.71,0.28706348]
[1736638013071,1.06716855,697.97,696.71,0.28706348]
[1736638013567,1.06716855,698.01,696.71,0.28706348]
[1736638014467,1.06716855,698.04,696.71,0.28706348]
[1736638015472,1.06716855,698.07,696.71,0.28706348]
[1736638016571,1.35366866,698.08,696.71,0.28706348]
[1736638017574,0.28650011,698.08,696.71,0.28706348]
[1736638020580,0.26345077,698.07,696.71,0.28706348]
[1736638020880,1.33061932,698.07,696.71,0.28706348]
[1736638021074,0.26345077,698.06,696.71,0.28706348]
[1736638021678,1.06716855,698.04,696.71,0.28706348]
[1736638021877,0.26345077,698.03,696.71,0.28706348]
[1736638022479,0.26346016,698.02,696.71,0.28706348]
[1736638022683,0.26346016,698.01,696.71,0.28706348]
[1736638022885,1.33062871,698.0,696.71,0.28706348]
[1736638023079,1.06716855,698.0,696.71,0.28706348]
[1736638023376,0.26345994,697.99,696.71,0.28706348]
[1736638025886,0.26345994,697.98,696.71,0.28706348]
[1736638026081,0.26345994,698.01,696.71,0.28706348]
[1736638026279,0.26345994,698.0,696.71,0.28706348]
[1736638026479,0.26345994,697.99,696.71,0.28706348]
[1736638026681,0.26345994,697.98,696.71,0.28706348]
[1736638026882,1.06716855,698.02,696.71,0.28706348]
[1736638027082,0.26345257,698.01,696.71,0.28706348]
[1736638027681,0.26345257,698.0,696.71,0.28706348]
[1736638027878,0.26345257,697.99,696.71,0.28706348]
[1736638028082,0.26345257,697.98,696.71,0.28706348]
[1736638028379,0.26345257,697.97,696.71,0.28706348]
[1736638028584,1.06716855,698.02,696.71,0.28706348]
[1736638028785,0.26345683,698.01,696.71,0.28706348]
[1736638029582,0.26345683,698.0,696.71,0.28706348]
[1736638029784,1.06716855,698.03,696.71,0.28706348]
[1736638030082,0.26344875,698.02,696.71,0.28706348]
[1736638031181,1.06716855,698.03,696.71,0.28706348]
[1736638031485,1.06716855,698.06,696.71,0.28706348]
[1736638032286,0.28650011,698.08,696.71,0.28706348]
[1736638032481,0.26343071,698.07,696.71,0.28706348]
[1736638032882,0.28650011,698.08,696.71,0.28706348]
[1736638055607,1.06716855,698.13,696.71,0.28706348]
[1736638056505,1.06716855,698.29,696.71,0.28706348]
[1736638057609,1.06716855,698.3,696.71,0.28706348]
[1736638059311,1.06716855,698.29,696.71,0.28706348]
[1736638061510,1.06716855,698.28,696.71,0.28706348]
[1736638062112,1.06716855,698.27,696.71,0.28706348]
[1736638064914,1.06716855,698.28,696.71,0.28706348]
[1736638065316,0.2633721,698.27,696.71,0.28706348]
[1736638065720,1.33054065,698.27,696.71,0.28706348]
[1736638065917,0.2633721,698.26,696.71,0.28706348]
[1736638066219,1.06716855,698.27,696.71,0.28706348]
[1736638066419,0.26336622,698.26,696.71,0.28706348]
[1736638066616,1.06716855,698.16,696.83,1.28667887]
[1736638066920,1.06716855,698.16,696.85,0.28700581]
[1736638069123,1.06716855,698.15,696.85,0.28700581]
[1736638071025,1.06716855,698.14,696.85,0.28700581]
[1736638071924,1.06716855,698.15,696.85,0.28700581]
[1736638077229,1.06716855,698.15,696.85,3.01963645]
[1736638078129,1.06716855,698.14,696.85,3.01963645]
[1736638082730,1.06716855,698.14,696.85,6.07599915]
[1736638082930,1.06716855,698.14,696.86,2.73263064]
[1736638083127,1.06716855,698.13,696.86,2.73263064]
[1736638083727,1.06716855,698.13,696.88,0.28699345]
[1736638084128,1.06716855,698.12,696.88,0.28699345]
[1736638085032,1.06716855,698.11,696.88,0.28699345]
[1736638087331,1.06716855,698.09,696.88,0.28699345]
[1736638088235,1.06716855,698.27,696.88,0.28699345]
[1736638088931,1.06716855,698.25,696.88,0.28699345]
[1736638090632,1.49669909,698.51,696.88,0.28699345]
[1736638090633,1.06716855,698.23,696.88,0.28699345]
[1736638091637,1.06716855,698.22,696.88,0.28699345]
[1736638095244,1.06716855,698.21,696.88,0.28699345]
[1736638096040,1.49669909,698.51,696.88,0.28699345]
[1736638096041,1.06716855,698.2,696.88,0.28699345]
[1736638097642,1.49669909,698.51,696.88,0.28699345]
[1736638097643,1.06716855,698.06,696.88,0.28699345]
[1736638098637,1.06716855,698.08,696.88,0.28699345]
[1736638099444,1.06716855,698.13,696.88,0.28699345]
[1736638101243,1.06716855,698.15,696.88,0.28699345]
[1736638102544,1.06716855,698.17,696.88,0.28699345]
[1736638103538,1.06716855,698.18,696.88,0.28699345]
[1736638108749,1.06716855,698.19,696.88,0.28699345]
[1736638109545,1.06716855,698.16,696.88,0.28699345]
[1736638110145,1.06716855,698.15,696.88,0.28699345]
[1736638110951,1.06716855,698.13,696.88,0.28699345]
[1736638114850,1.06716855,698.14,696.88,0.28699345]
[1736638117651,1.06716855,698.13,696.88,0.28699345]
[1736638118354,1.06716855,698.1,696.88,0.28699345]
[1736638120054,1.06716855,698.12,696.92,1.28667887]
[1736638120353,1.06716855,698.12,696.93,0.28697286]
[1736638122052,1.06716855,698.11,696.93,0.28697286]
[1736638124953,1.06716855,698.09,696.93,0.28697286]
[1736638126057,1.06716855,698.09,696.93,1.57365173]
[1736638126750,1.06716855,698.09,696.93,0.28697286]
[1736638127155,1.06716855,698.09,696.93,3.33669334]
[1736638127357,1.06716855,698.09,696.93,6.06857072]
[1736638127553,1.06716855,698.09,696.94,2.73187738]
[1736638127756,1.06716855,698.09,696.95,0.28696463]
[1736638128558,1.06716855,698.13,696.95,0.28696463]
[1736638128859,1.06716855,698.13,696.95,3.01884201]
[1736638129258,1.06716855,698.11,696.95,3.01884201]
[1736638129456,1.06716855,698.11,696.95,0.28696463]
[1736638130659,1.06716855,698.12,696.95,0.28696463]
[1736638133462,1.06716855,698.11,696.95,0.28696463]
[1736638138866,1.06716855,698.08,696.95,0.28696463]
[1736638144576,1.06716855,698.16,696.95,0.28696463]
[1736638146575,1.06716855,698.13,696.95,0.28696463]
[1736638147174,1.06716855,698.16,696.95,0.28696463]
[1736638150786,1.06716855,698.17,696.95,0.28696463]
[1736638154189,0.88550965,698.5,696.95,0.28696463]
[1736638154190,1.06716855,698.13,696.95,0.28696463]
[1736638156291,1.06716855,698.12,696.95,0.28696463]
[1736638157093,1.06716855,698.1,696.95,0.28696463]
[1736638159091,1.06716855,698.09,696.95,0.28696463]
[1736638161196,0.88550965,698.5,696.95,0.28696463]
[1736638161197,1.06716855,698.05,696.95,0.28696463]
[1736638162196,1.06716855,698.08,696.95,0.28696463]
[1736638162997,1.06716855,698.07,696.95,0.28696463]
[1736638163897,1.06716855,698.09,696.95,0.28696463]
[1736638165197,1.06716855,698.1,696.95,0.28696463]
[1736638166196,1.06716855,698.07,696.95,0.28696463]
[1736638167096,1.06716855,698.06,696.95,0.28696463]
[1736638168892,1.06716855,698.08,696.95,0.28696463]
[1736638170096,1.06716855,698.09,696.95,0.28696463]
[1736638172400,1.06716855,698.1,696.95,0.28696463]
[1736638175502,0.26342399,698.09,696.95,0.28696463]
[1736638175705,1.06716855,698.09,696.95,0.28696463]
[1736638176500,0.26341756,698.08,696.95,0.28696463]
[1736638176705,0.26341756,698.07,696.95,0.28696463]
[1736638176905,1.06716855,698.1,696.95,0.28696463]
[1736638177100,0.26342266,698.09,696.95,0.28696463]
[1736638177506,1.06716855,698.08,696.95,0.28696463]
[1736638178304,1.06716855,698.09,696.95,0.28696463]
[1736638178502,0.26341777,698.08,696.95,0.28696463]
[1736638179506,1.33058632,698.08,696.95,0.28696463]
[1736638179706,1.06716855,698.08,696.95,0.28696463]
[1736638180607,0.26342002,698.07,696.95,0.28696463]
[1736638181302,1.33058857,698.07,696.95,0.28696463]
[1736638181505,1.06716855,698.07,696.95,0.28696463]
[1736638182902,1.06716855,698.08,696.95,0.28696463]
[1736638183909,1.06716855,698.14,696.95,0.28696463]
[1736638185906,1.06716855,698.13,696.95,0.28696463]
[1736638186910,1.06716855,698.12,696.95,0.28696463]
[1736638188913,1.06716855,698.32,696.95,0.28696463]
[1736638188914,1.06716855,698.1,696.95,0.28696463]
[1736638190617,1.06716855,698.08,696.95,0.28696463]
[1736638191813,1.06716855,698.07,696.95,0.28696463]
[1736638192518,1.06716855,698.1,696.95,0.28696463]
[1736638193217,1.06716855,698.03,696.95,0.28696463]
[1736638195720,1.06716855,698.05,696.95,0.28696463]
[1736638198618,0.8840395,698.36,696.95,0.28696463]
[1736638198619,1.06716855,698.06,696.95,0.28696463]
[1736638200524,1.06716855,698.05,696.95,0.28696463]
[1736638202824,1.06716855,698.03,696.95,0.28696463]
[1736638204627,0.8840395,698.36,696.95,0.28696463]
[1736638204628,1.06716855,698.02,696.95,0.28696463]
[1736638205830,1.06716855,697.99,696.95,0.28696463]
[1736638206726,1.06716855,698.0,696.95,0.28696463]
[1736638208934,1.06716855,697.99,696.95,0.28696463]
[1736638209737,1.06716855,698.03,696.95,0.28696463]
[1736638210734,0.8840395,698.36,696.95,0.28696463]
[1736638210735,1.06716855,698.01,696.95,0.28696463]
[1736638212135,1.06716855,698.0,696.95,0.28696463]
[1736638212539,0.26346278,697.99,696.95,0.28696463]
[1736638213135,1.06716855,697.86,696.95,0.28696463]
[1736638213840,1.06716855,697.87,696.95,0.28696463]
[1736638214631,1.06716855,697.93,696.95,0.28696463]
[1736638215431,1.06716855,697.92,696.95,0.28696463]
[1736638216838,1.06716855,697.89,696.95,0.28696463]
[1736638218135,1.06716855,697.92,696.95,0.28696463]
[1736638218937,0.2635066,697.91,696.95,0.28696463]
[1736638219237,0.2635066,697.9,696.95,0.28696463]
[1736638219438,1.06716855,697.96,696.95,0.28696463]
[1736638219639,0.26348644,697.95,696.95,0.28696463]
[1736638220237,0.26348644,697.94,696.95,0.28696463]
[1736638220435,0.26348785,697.93,696.95,0.28696463]
[1736638220639,0.26348785,697.92,696.95,0.28696463]
[1736638220936,0.26348767,697.91,696.95,0.28696463]
[1736638221133,0.26348767,697.96,696.95,0.28696463]
[1736638221338,0.26348767,697.95,696.95,0.28696463]
[1736638221539,0.26348767,697.94,696.95,0.28696463]
[1736638221733,0.26348767,697.93,696.95,0.28696463]
[1736638221932,0.26348767,697.92,696.95,0.28696463]
[1736638222238,0.26348767,697.91,696.95,0.28696463]
[1736638222540,1.06716855,697.99,696.95,0.28696463]
[1736638222742,0.26349081,697.98,696.95,0.28696463]
[1736638223341,1.06716855,698.01,696.95,0.28696463]
[1736638223342,0.26349081,697.97,696.95,0.28696463]
[1736638223534,1.06716855,698.01,696.95,0.28696463]
[1736638223736,0.2634912,698.0,696.95,0.28696463]
[1736638224140,0.2634912,697.99,696.95,0.28696463]
[1736638224341,1.06716855,698.06,696.95,0.28696463]
[1736638224545,0.26347493,698.05,696.95,0.28696463]
[1736638225145,0.26347493,698.04,696.95,0.28696463]
[1736638225345,0.26347493,698.03,696.95,0.28696463]
[1736638225645,0.26347493,698.02,696.95,0.28696463]
[1736638225846,0.26347493,698.01,696.95,0.28696463]
[1736638226145,1.06716855,698.1,696.95,0.28696463]
[1736638226346,0.26347043,698.09,696.95,0.28696463]
[1736638227247,0.26347043,698.08,696.95,0.28696463]
[1736638227445,0.26347043,698.07,696.95,0.28696463]
[1736638227648,0.26347043,698.06,696.95,0.28696463]
[1736638229043,0.26348655,698.05,696.95,0.28696463]
[1736638229245,0.26348655,698.04,696.95,0.28696463]
[1736638229545,0.26348655,698.03,696.95,0.28696463]
[1736638229749,0.26348655,698.02,696.95,0.28696463]
[1736638229945,0.26348655,698.01,696.95,0.28696463]
[1736638230144,0.26348655,698.0,696.95,0.28696463]
[1736638230345,0.26348655,697.99,696.95,0.28696463]
[1736638230547,0.26348655,697.98,696.95,0.28696463]
[1736638230747,1.06716855,698.07,696.95,0.28696463]
[1736638231051,0.26348761,698.06,696.95,0.28696463]
[1736638231742,0.26349044,698.05,696.95,0.28696463]
[1736638231947,0.26349044,698.04,696.95,0.28696463]
[1736638232247,0.26349044,698.03,696.95,0.28696463]
[1736638232444,1.06716855,698.07,696.95,0.28696463]
[1736638232445,0.26349044,698.02,696.95,0.28696463]
[1736638232643,0.26349044,698.01,696.95,0.28696463]
[1736638232849,0.26349044,698.0,696.95,0.28696463]
[1736638233047,0.26349044,697.99,696.95,0.28696463]
[1736638233249,0.26349044,697.98,696.95,0.28696463]
[1736638233448,0.26349044,697.97,696.95,0.28696463]
[1736638233648,1.49721424,698.26,696.95,0.28696463]
[1736638233649,0.26349044,697.96,696.95,0.28696463]
[1736638233843,0.26349044,697.95,696.95,0.28696463]
[1736638234048,0.26349044,697.94,696.95,0.28696463]
[1736638234246,0.26349044,697.93,696.95,0.28696463]
[1736638234449,0.26348977,697.92,696.95,0.28696463]
[1736638234644,0.26348977,697.91,696.95,0.28696463]
[1736638234847,0.26348977,697.9,696.95,0.28696463]
[1736638235045,0.26350061,697.89,696.95,0.28696463]
[1736638235248,0.26350577,697.88,696.95,0.28696463]
[1736638235444,0.26350577,697.87,696.95,0.28696463]
[1736638235645,0.26350577,697.86,696.95,0.28696463]
[1736638235848,1.06716855,697.99,696.95,0.28696463]
[1736638235849,0.26350577,697.85,696.95,0.28696463]
[1736638236051,0.26350577,697.98,696.95,0.28696463]
[1736638236245,0.26350577,697.97,696.95,0.28696463]
[1736638236446,1.49734845,698.15,696.95,0.28696463]
[1736638236447,1.06716855,697.95,696.95,0.28696463]
[1736638236652,0.26350577,697.94,696.95,0.28696463]
[1736638237753,1.33067432,697.94,696.95,0.28696463]
[1736638237949,0.26350577,697.93,696.95,0.28696463]
[1736638239454,1.33067432,697.93,696.95,0.28696463]
[1736638239654,0.26350577,697.92,696.95,0.28696463]
[1736638239855,0.26349753,697.91,696.95,0.28696463]
[1736638240055,0.26349753,697.9,696.95,0.28696463]
[1736638240257,0.26349753,697.89,696.95,0.28696463]
[1736638240457,0.26349753,697.88,696.95,0.28696463]
[1736638240657,0.26349753,697.87,696.95,0.28696463]
[1736638240956,1.06716855,697.94,696.95,0.28696463]
[1736638241255,0.26349725,697.93,696.95,0.28696463]
[1736638242552,1.33065571,697.92,696.95,0.28696463]
[1736638242750,1.06716855,697.92,696.95,0.28696463]
[1736638243251,1.06716855,698.06,696.95,0.28696463]
[1736638244057,1.06716855,698.08,696.95,0.28696463]
[1736638244960,1.06716855,698.09,696.95,0.28696463]
[1736638245761,1.06716855,698.05,696.95,0.28696463]
[1736638246659,1.06716855,698.03,696.95,0.28696463]
[1736638247658,1.06716855,697.99,696.95,0.28696463]
[1736638248460,1.06716855,697.96,696.95,0.28696463]
[1736638249465,1.06716855,697.95,696.95,0.28696463]
[1736638250555,1.06716855,697.86,696.95,0.28696463]
[1736638251157,1.06716855,697.93,696.95,0.28696463]
[1736638254064,1.06716855,697.94,696.95,0.28696463]
[1736638256360,1.06716855,697.92,696.95,0.28696463]
[1736638257165,1.06716855,697.91,696.95,0.28696463]
[1736638258271,1.06716855,697.92,696.95,0.28696463]
[1736638259367,1.06716855,697.9,696.95,0.28696463]
[1736638260071,1.06716855,697.89,696.95,0.28696463]
[1736638261072,1.06716855,697.83,696.95,0.28696463]
[1736638261974,1.06716855,697.84,696.95,0.28696463]
[1736638263771,1.06716855,697.81,696.95,0.28696463]
[1736638264575,1.06716855,697.82,696.95,0.28696463]
[1736638265375,1.06716855,697.74,696.95,0.28696463]
[1736638266375,1.06716855,697.78,696.95,0.28696463]
[1736638268175,1.06716855,697.79,696.95,0.28696463]
[1736638270077,1.06716855,697.77,696.95,0.28696463]
[1736638270682,1.06716855,697.75,696.95,0.28696463]
[1736638271683,1.06716855,697.94,696.95,0.28696463]
[1736638271684,1.06716855,697.76,696.95,0.28696463]
[1736638272784,0.88412002,698.09,696.95,0.28696463]
[1736638272785,1.06716855,697.78,696.95,0.28696463]
[1736638273585,1.06716855,697.8,696.95,0.28696463]
[1736638275979,1.06716855,697.79,696.95,0.28696463]
[1736638277887,1.06716855,697.86,696.95,0.28696463]